Workbook

Sheet Sheet1
A1: მოსწავლეთა კონკურსის მონაწილეთა რაოდენობა
A2: კლასებისა და ქალაქების მიხედვით
B4: IX | D4: X | F4: XI | H4: XII | J4: სულ
A5: ზონა | B5: რაოდ. | C5: ხვედრითი წილი | D5: რაოდ. | E5: ხვედრითი წილი | F5: რაოდ. | G5: ხვედრითი წილი | H5: რაოდ. | I5: ხვედრითი წილი | J5: რაოდ. | K5: ხვედრითი წილი
A6: თბილისი | B6: 51 | C6: =B6/B$14 -> 0.2161016949 | D6: 34 | E6: =D6/D$14 -> 0.1393442623 | F6: 42 | G6: =F6/F$14 -> 0.1555555556 | H6: 55 | I6: =H6/H$14 -> 0.1632047478 | J6: =B6+D6+F6+H6 -> 182 | K6: =J6/J$14 -> 0.1674333027
A7: ქუთაისი | B7: 35 | C7: =B7/B$14 -> 0.1483050847 | D7: 47 | E7: =D7/D$14 -> 0.1926229508 | F7: 49 | G7: =F7/F$14 -> 0.1814814815 | H7: 66 | I7: =H7/H$14 -> 0.1958456973 | J7: =B7+D7+F7+H7 -> 197 | K7: =J7/J$14 -> 0.1812327507
A8: რუსთავი | B8: 25 | C8: 0.1059322034 | D8: 29 | E8: 0.118852459 | F8: 37 | G8: 0.137037037 | H8: 42 | I8: 0.1246290801 | J8: 133 | K8: 0.1223551058
A9: ბათუმი | B9: 27 | C9: 0.1144067797 | D9: 28 | E9: 0.1147540984 | F9: 35 | G9: 0.1296296296 | H9: 41 | I9: 0.1216617211 | J9: 131 | K9: 0.1205151794
A10: სოხუმი | B10: 27 | C10: 0.1144067797 | D10: 37 | E10: 0.1516393443 | F10: 31 | G10: 0.1148148148 | H10: 32 | I10: 0.09495548961 | J10: 127 | K10: 0.1168353266
A11: გორი | B11: 26 | C11: 0.1101694915 | D11: 27 | E11: 0.1106557377 | F11: 25 | G11: 0.09259259259 | H11: 34 | I11: 0.1008902077 | J11: 112 | K11: 0.1030358786
A12: ზუგდიდი | B12: 29 | C12: 0.1228813559 | D12: 18 | E12: 0.0737704918 | F12: 27 | G12: 0.1 | H12: 31 | I12: 0.09198813056 | J12: 105 | K12: 0.09659613615
A13: თელავი | B13: 16 | C13: 0.06779661017 | D13: 24 | E13: 0.09836065574 | F13: 24 | G13: 0.08888888889 | H13: 36 | I13: 0.1068249258 | J13: 100 | K13: 0.09199632015
A14: სულ | B14: =SUM(B6:B13) -> 236 | D14: =SUM(D6:D13) -> 244 | F14: =SUM(F6:F13) -> 270 | H14: =SUM(H6:H13) -> 337 | J14: =SUM(J6:J13) -> 1087
